bitfinex/quotes_ETHUSD_20250725
["timestamp","ask_amount","ask_price","bid_price","bid_amount"]
[1753451135625,0.27990001,3693.9,3692.7,0.1352]
[1753451135829,0.1352,3693.3,3692.7,0.1352]
[1753451136125,0.1352,3693.3,3692.8,2.70792342]
[1753451136331,0.1352,3693.3,3692.7,0.1352]
[1753451136803,0.1352,3693.3,3692.9,2.70782832]
[1753451136998,0.1352,3693.3,3692.7,0.1352]
[1753451137216,0.1352,3693.3,3693.0,2.70781091]
[1753451137400,2.70730407,3693.8,3693.0,2.70776619]
[1753451137734,0.29871283,3693.9,3693.1,7.39975229]
[1753451137941,2.707592,3693.4,3693.1,4.692]
[1753451138257,0.6036,3693.3,3692.9,4.692]
[1753451138442,0.2799,3693.8,3692.9,4.692]
[1753451138588,0.1352,3693.4,3692.9,4.692]
[1753451138790,3.17606011,3693.3,3692.9,4.692]
[1753451139002,2.70758506,3693.4,3692.4,2.70820271]
[1753451139202,2.70748114,3693.5,3692.8,2.70797227]
[1753451139493,3.1352,3693.3,3692.7,2.84321928]
[1753451139722,0.1352,3693.3,3692.8,2.70796475]
[1753451140399,0.1352,3693.3,3693.0,2.70781253]
[1753451140601,0.1352,3693.3,3692.7,2.84323493]
[1753451140602,3.0,3693.2,3692.7,0.1352]
[1753451140908,2.70775229,3693.1,3692.7,0.1352]
[1753451141252,3.0,3693.2,3692.7,0.1352]
[1753451141401,2.70712754,3694.0,3692.2,0.4518]
[1753451141402,2.707981,3692.8,3692.6,4.691]
[1753451141590,2.707981,3692.8,3691.7,0.4518]
[1753451141591,0.4684,3692.7,3691.8,4.691]
[1753451141791,2.7083181,3692.4,3691.8,4.8262]
[1753451142002,2.84355974,3692.3,3691.8,4.8262]
[1753451142201,0.1352,3692.3,3691.8,4.8262]
[1753451142444,0.1352,3692.3,3691.8,8.0175063]
[1753451142649,0.1352,3692.3,3691.8,4.8262]
[1753451142854,3.0,3692.9,3692.3,2.70827474]
[1753451143010,0.1352,3692.8,3692.6,2.70811025]
[1753451143207,0.1352,3692.8,3692.2,0.1352]
[1753451143208,2.8431484,3692.9,3692.4,0.1352]
[1753451143409,3.0,3693.0,3691.8,4.69]
[1753451143710,2.70836944,3692.3,3691.8,4.8252]
[1753451143929,2.70844014,3692.2,3691.8,4.69]
[1753451144260,0.1352,3692.1,3691.8,4.69]
[1753451144562,2.70869422,3691.9,3691.6,1e-08]
[1753451144706,0.1352,3691.8,3691.6,1e-08]
[1753451144907,0.7483,3692.6,3691.6,1e-08]
[1753451145223,2.84389784,3691.9,3691.6,1e-08]
[1753451145421,0.1352,3691.9,3691.6,1e-08]
[1753451145935,0.1352,3691.9,3691.6,0.90380001]
[1753451146120,0.1352,3692.1,3691.6,1e-08]
[1753451146753,5.84397915,3691.7,3691.6,1e-08]
[1753451147150,6.31237915,3691.7,3691.6,1e-08]
[1753451147852,6.59227915,3691.7,3691.6,1e-08]
[1753451148022,7.40357915,3691.7,3691.6,1e-08]
[1753451148620,11.81167915,3691.7,3691.6,1e-08]
[1753451149227,6.65527915,3691.7,3691.6,1e-08]
[1753451149871,7.12367915,3691.7,3691.6,1e-08]
[1753451150269,3.9465,3691.7,3691.6,1e-08]
[1753451150481,0.1352,3691.7,3691.6,1e-08]
[1753451150642,0.8217,3692.2,3691.6,0.90380001]
[1753451150848,3.6653424,3692.2,3691.6,0.13520001]
[1753451151044,5.70854181,3692.1,3691.6,1e-08]
[1753451151273,3.1352,3691.9,3691.6,1e-08]
[1753451151430,2.70877915,3691.7,3691.6,1e-08]
[1753451151630,3.1352,3691.7,3691.6,1e-08]
[1753451151865,5.84397915,3691.7,3691.6,1e-08]
[1753451153537,3.1352,3691.7,3691.6,1e-08]
[1753451153737,5.84397915,3691.7,3691.6,1e-08]
[1753451154433,7.37147915,3691.7,3691.6,1e-08]
[1753451154633,7.09157915,3691.7,3691.6,1e-08]
[1753451154948,11.77857915,3691.7,3691.6,1e-08]
[1753451155564,6.62317915,3691.7,3691.6,1e-08]
[1753451155791,3.9144,3691.7,3691.6,1e-08]
[1753451155953,3.9144,3691.7,3691.6,0.90380001]
[1753451155954,3.0,3691.7,3691.6,0.90380001]
[1753451156278,5.4538,3692.3,3691.6,1.26508153]
[1753451156279,0.7678,3692.3,3691.6,1.26508153]
[1753451156452,2.70809532,3692.7,3691.8,3.50620578]
[1753451156774,0.7678,3692.8,3691.8,3.50620578]
[1753451156775,0.1352,3692.5,3692.0,0.1352]
[1753451157084,3.47577868,3692.8,3691.8,0.7975]
[1753451157085,3.0,3692.3,3691.8,0.7975]
[1753451157290,2.84354739,3692.3,3691.8,1.8365]
[1753451157492,0.1352,3692.3,3691.9,0.9038]
[1753451157666,0.1352,3692.3,3692.0,0.9038]
[1753451158498,3.0,3692.7,3692.1,0.9038]
[1753451158789,0.1352,3692.7,3692.2,2.84361232]
[1753451159085,0.1352,3692.7,3692.3,0.9038]
[1753451159587,0.1352,3692.7,3692.4,0.4518]
[1753451159799,0.1352,3693.3,3692.5,0.02708192]
[1753451159963,0.1352,3693.3,3692.8,0.1352]
[1753451160165,0.1352,3693.3,3692.9,3.61167992]
[1753451160494,2.70793315,3692.9,3692.4,4.8192]
[1753451160654,3.0,3692.7,3691.9,4.684]
[1753451161017,3.1352,3692.8,3692.0,0.9038]
[1753451161306,0.1352,3692.4,3692.0,0.9038]
[1753451161454,0.1352,3692.7,3692.2,0.1352]
[1753451161648,0.1352,3692.9,3692.3,0.9038]
[1753451162054,0.7561,3693.3,3692.4,0.02708265]
[1753451162250,0.4684,3693.5,3692.4,0.9038]
[1753451162477,2.7080373,3692.8,3692.4,0.1352]
[1753451162686,3.4684,3693.1,3692.0,4.683]
[1753451162895,2.84338414,3692.6,3692.0,0.1352]
[1753451163205,0.1352,3692.6,3692.0,2.84375059]
[1753451163354,2.84332575,3692.6,3692.0,0.1352]
[1753451163555,0.1352,3692.6,3692.0,0.1352]
[1753451163778,0.1352,3692.6,3692.0,1.05882045]
[1753451163980,3.7706,3693.0,3691.7,0.8065]
[1753451164303,4.682,3693.1,3690.8,0.9048]
[1753451164304,2.70877915,3691.7,3690.8,0.9048]
[1753451164620,5.84397915,3691.7,3690.9,0.1352]
[1753451164782,6.31237915,3691.7,3690.8,0.001]
[1753451165916,6.59227915,3691.7,3690.8,0.001]
[1753451166080,12.04387915,3691.7,3690.8,0.001]
[1753451166815,11.76397915,3691.7,3690.8,0.001]
[1753451167317,11.77937915,3691.7,3690.8,0.001]
[1753451167517,12.05927915,3691.7,3690.8,0.001]
[1753451168019,11.77937915,3691.7,3690.8,0.001]
[1753451168816,6.61457915,3691.7,3690.9,0.9433]
[1753451169124,2.70877915,3691.7,3690.8,0.001]
[1753451169280,0.1352,3691.7,3691.0,0.4934]
[1753451169479,0.1352,3691.7,3691.3,3.65230562]
[1753451169716,0.7998,3692.5,3691.6,0.94330001]
[1753451169881,2.70859433,3692.0,3691.6,1.07850001]
[1753451170081,0.1352,3691.9,3691.6,0.94330001]
[1753451170308,0.1352,3691.9,3691.7,3.65207166]
[1753451170513,3.7998,3692.5,3691.9,2.70858872]
[1753451170514,0.7998,3692.5,3691.9,2.70858872]
[1753451170782,0.1352,3692.2,3691.8,2.70870578]
[1753451171010,0.1352,3692.2,3691.7,0.64961836]
[1753451171180,0.1352,3692.2,3691.9,0.9433]
[1753451171380,0.1352,3692.2,3692.0,0.9433]
[1753451171781,0.1352,3692.2,3691.7,3.35838884]
[1753451171983,0.1352,3692.2,3692.1,0.9433]
[1753451172488,0.1352,3692.2,3691.6,3.61144864]
[1753451172489,2.70853635,3692.1,3691.6,0.76740001]
[1753451172799,0.1352,3692.0,3691.7,0.9433]
[1753451173102,0.1352,3692.0,3691.8,0.4499]
[1753451173413,16.53447309,3694.0,3691.8,0.9433]
[1753451173414,0.1352,3692.2,3691.8,0.9433]
[1753451173615,0.1352,3692.2,3691.6,0.76740001]
[1753451173616,2.70877915,3691.7,3691.6,1e-08]
[1753451173802,5.70877915,3691.7,3691.6,1e-08]
[1753451174420,11.14947915,3691.7,3691.6,1e-08]
[1753451174811,5.70877915,3691.7,3691.6,1e-08]
[1753451175121,10.38577915,3691.7,3691.6,1e-08]
[1753451175288,5.70877915,3691.7,3691.6,1e-08]
[1753451175886,3.0,3691.7,3691.6,1e-08]
[1753451177536,5.70877915,3691.7,3691.6,1e-08]
[1753451177699,6.01127482,3691.7,3691.6,1e-08]
[1753451178090,6.49507482,3691.7,3691.6,1e-08]
[1753451178295,6.01127482,3691.7,3691.6,1e-08]
[1753451179003,5.99997482,3691.7,3691.6,1e-08]
[1753451179400,2.9887,3691.7,3691.6,1e-08]
[1753451179639,10.37147915,3691.7,3691.6,1e-08]
[1753451180050,2.9887,3691.7,3691.6,1e-08]
[1753451180254,2.70757647,3693.4,3691.6,1e-08]
[1753451180255,0.7949,3692.5,3691.6,3.652096]
[1753451180539,2.70834257,3692.3,3691.7,2.70873204]
[1753451180745,2.70841711,3692.2,3691.6,3.65213783]
[1753451180913,4.674,3692.4,3691.6,1e-08]
[1753451181115,2.70877915,3691.7,3691.6,1e-08]
[1753451181319,2.70875101,3691.8,3691.6,1e-08]
[1753451181505,2.70877915,3691.7,3691.6,1e-08]
[1753451181705,5.70877915,3691.7,3691.6,1e-08]
[1753451181924,6.49137915,3691.7,3691.6,1e-08]
[1753451182102,6.97517915,3691.7,3691.6,1e-08]
[1753451182298,11.64817915,3691.7,3691.6,1e-08]
[1753451183774,12.06327915,3691.7,3691.6,1e-08]
[1753451184072,12.61327915,3691.7,3691.6,1e-08]
[1753451184757,7.94027915,3691.7,3691.6,1e-08]
[1753451184912,12.61227915,3691.7,3691.6,1e-08]
[1753451185114,7.11037915,3691.7,3691.6,1e-08]
[1753451185419,11.29757915,3691.7,3691.6,1e-08]
[1753451186525,6.62657915,3691.7,3691.6,1e-08]
[1753451186729,11.29657915,3691.7,3691.6,1e-08]
[1753451186935,11.78037915,3691.7,3691.6,1e-08]
[1753451187457,5.84397915,3691.7,3691.6,1e-08]
[1753451187617,10.51397915,3691.7,3691.6,1e-08]
[1753451188450,10.99777915,3691.7,3691.6,1e-08]
[1753451188843,10.51397915,3691.7,3691.6,1e-08]
[1753451189622,3.1352,3691.7,3691.6,1e-08]
[1753451189827,0.1352,3691.7,3691.6,0.94330001]
[1753451190132,2.70854453,3692.1,3691.6,0.94330001]
[1753451190133,4.669,3692.1,3691.6,0.94330001]
[1753451190331,0.1352,3691.8,3691.7,0.9433]
[1753451190544,0.1352,3691.8,3691.6,1e-08]
[1753451190746,3.1352,3691.8,3691.6,1e-08]
[1753451190920,0.1352,3691.8,3691.7,0.4499]
[1753451191126,0.1352,3691.8,3691.7,0.9433]
[1753451192234,2.84390578,3691.8,3691.6,1e-08]
[1753451192575,0.1352,3691.8,3691.6,1e-08]
[1753451192752,0.1352,3691.8,3691.7,0.9433]
[1753451192956,0.1352,3691.8,3691.6,1e-08]
[1753451192957,2.70877915,3691.7,3691.6,1e-08]
[1753451193539,10.50993319,3691.8,3691.6,1e-08]
[1753451193757,10.50993204,3691.8,3691.6,0.94330001]
[1753451193961,7.8012,3691.8,3691.6,1e-08]
[1753451194122,7.8012,3691.8,3691.7,0.9433]
[1753451194339,3.0,3691.8,3691.7,0.9433]
[1753451194546,2.70824579,3692.5,3691.8,0.7743]
[1753451194730,0.1352,3692.3,3691.9,0.9433]
[1753451194926,0.1352,3692.3,3692.0,0.9433]
[1753451195131,7.04,3692.7,3692.3,2.70830603]
[1753451195367,4.665,3692.8,3691.8,0.80138705]
[1753451195368,7.37298305,3692.8,3691.8,0.80138705]
[1753451195553,0.1352,3692.5,3692.0,2.84371021]
[1753451195741,0.1352,3692.5,3692.0,0.76787156]
[1753451195937,3.0,3692.4,3691.8,0.7743]
[1753451196168,3.0,3692.4,3691.6,1e-08]
[1753451196482,0.1352,3691.8,3691.7,0.9418]
[1753451196655,2.84367267,3692.2,3691.7,0.9418]
[1753451196858,0.1352,3692.2,3691.8,0.9418]
[1753451197164,0.1352,3692.2,3691.9,0.9418]
[1753451197381,0.1352,3692.2,3691.9,1.59125088]
[1753451197546,2.70865988,3691.9,3691.6,1e-08]
[1753451197745,0.1352,3691.9,3691.6,1e-08]
[1753451198051,0.1352,3691.9,3691.7,0.9418]
[1753451198362,3.0,3692.1,3691.8,0.9418]
[1753451198573,4.663,3692.5,3691.9,0.4953]
[1753451198574,0.1352,3692.2,3691.9,0.4953]
[1753451198756,0.1352,3692.2,3692.0,0.4953]
[1753451198958,0.1352,3692.2,3692.1,3.65028568]
[1753451199174,3.0,3692.4,3692.1,0.9418]
[1753451199469,0.1352,3692.5,3692.2,0.9418]
[1753451199629,0.1352,3692.5,3692.3,0.9418]
[1753451199831,0.1352,3692.5,3692.0,2.84373506]
[1753451199832,0.1352,3692.5,3692.1,0.4465]
[1753451200027,2.70837183,3692.3,3691.7,0.4465]
[1753451200257,0.1352,3692.2,3691.7,0.4465]
[1753451200454,0.1352,3692.0,3691.6,1e-08]
[1753451200678,3.1352,3692.0,3691.6,1e-08]
[1753451200842,2.70864415,3691.9,3691.6,1e-08]
[1753451201042,2.84376549,3692.0,3691.6,1e-08]
[1753451201247,3.1352,3692.0,3691.6,1e-08]
[1753451201448,0.1352,3692.0,3691.6,1e-08]
[1753451201776,2.84376241,3692.0,3691.6,1e-08]
[1753451201972,2.70877915,3691.7,3691.6,1e-08]
[1753451202181,2.84397915,3691.7,3691.6,1e-08]
[1753451202584,10.96797915,3691.7,3691.6,1e-08]
[1753451203580,13.29067915,3691.7,3691.6,1e-08]
[1753451203786,11.66167915,3691.7,3691.6,1e-08]
[1753451203993,19.10338763,3691.7,3691.6,1e-08]
[1753451204158,19.75826346,3691.7,3691.6,1e-08]
[1753451204649,19.90884079,3691.7,3691.6,1e-08]
[1753451204856,14.54926346,3691.7,3691.6,1e-08]
[1753451205043,18.46336346,3691.7,3691.6,1e-08]
[1753451205242,18.92736346,3691.7,3691.6,1e-08]
[1753451205467,13.55427915,3691.7,3691.6,1e-08]
[1753451205688,17.40677915,3691.7,3691.6,1e-08]
[1753451206198,10.04,3691.7,3691.6,1e-08]
[1753451206356,14.698,3691.7,3691.6,0.94180001]
[1753451206553,7.04,3691.7,3691.6,0.94180001]
[1753451206757,2.70747848,3693.5,3691.6,1.30687253]
[1753451206758,7.04,3692.8,3691.6,1.30687253]
[1753451206978,0.2510014,3692.7,3692.0,0.8054]
[1753451207175,2.70724036,3693.8,3692.1,0.9418]
[1753451207176,7.8335,3693.7,3692.1,0.9418]
[1753451207343,7.8335,3693.7,3692.2,0.9418]
[1753451207543,0.2799,3694.6,3693.0,0.8297]
[1753451207544,0.7567,3694.2,3693.0,0.8297]
[1753451207896,2.70695917,3694.2,3693.1,0.9418]
[1753451208043,0.25103856,3694.5,3693.0,0.8297]
[1753451208044,2.70677374,3694.5,3693.5,3.53715904]
[1753451208243,0.002,3694.7,3693.5,3.53715904]
[1753451208244,0.002,3694.7,3693.5,4.47895904]
[1753451208466,2.70673459,3694.5,3693.5,4.47895904]
[1753451208659,2.70673459,3694.5,3693.5,1.7715]
[1753451208660,3.002,3694.4,3693.5,1.7715]
[1753451208868,3.0,3694.1,3693.5,1.7715]
[1753451209190,2.70881154,3694.4,3693.5,1.7715]
[1753451209191,0.002,3694.4,3693.5,1.7715]
[1753451209492,0.002,3694.4,3693.5,4.47895904]
[1753451209816,2.70689333,3694.3,3693.5,4.47895904]
[1753451210108,3.0,3694.2,3693.5,4.47895904]
[1753451210309,0.002,3694.4,3693.5,4.47895904]
[1753451210507,0.002,3694.4,3693.8,2.70723915]
[1753451210670,0.002,3694.4,3693.6,3.20268574]
[1753451210871,0.002,3694.4,3693.5,3.53715484]
[1753451210872,0.002,3694.4,3693.7,0.9418]
[1753451211185,0.002,3694.4,3693.5,0.8297]
[1753451211186,2.70697298,3694.2,3693.5,0.8297]
[1753451211384,0.002,3693.6,3693.5,1.7715]
[1753451211823,0.002,3693.6,3693.5,5.6630244]
[1753451212780,0.002,3693.6,3693.5,2.95556536]
[1753451212980,0.002,3693.6,3693.5,5.6630244]
[1753451213224,0.002,3693.6,3693.5,2.95556536]
[1753451213552,0.002,3693.6,3693.5,5.7982244]
[1753451214491,0.002,3693.6,3693.5,1.9067]
[1753451214712,0.002,3693.6,3693.5,4.61415904]
[1753451216103,0.002,3693.6,3693.5,9.26315904]
[1753451216326,0.002,3693.6,3693.5,6.5557]
[1753451216693,0.002,3693.6,3693.5,5.6139]
[1753451217017,0.002,3693.6,3693.5,5.4787]
[1753451217396,0.002,3693.6,3693.5,4.649]
[1753451217737,0.002,3693.6,3693.2,4.648]
[1753451217910,0.1352,3693.3,3693.2,4.648]
[1753451218101,0.466,3693.6,3693.2,4.648]
[1753451218102,0.002,3693.6,3693.2,5.5898]
[1753451218297,0.1352,3693.4,3693.2,5.0945]
[1753451218530,0.1352,3693.4,3693.3,0.4465]
[1753451218899,0.002,3693.6,3693.3,3.64938182]
[1753451219096,0.002,3693.6,3693.5,2.70745904]
[1753451219403,0.002,3693.6,3693.5,3.59355904]
[1753451219603,0.002,3693.6,3693.5,4.53535904]
[1753451220819,0.002,3693.6,3693.5,4.56243363]
[1753451221045,0.002,3693.6,3693.5,4.53535904]
[1753451221232,0.002,3693.6,3693.5,5.83450681]
[1753451222097,0.002,3693.6,3693.5,0.1352]
[1753451222343,0.002,3693.6,3693.5,2.70745904]
[1753451222542,0.002,3693.6,3693.5,3.67633363]
[1753451222712,0.002,3693.6,3693.4,4.7792]
[1753451222915,0.002,3693.6,3693.5,7.35145904]
[1753451223100,0.002,3693.6,3693.5,9.31268228]
[1753451223660,0.002,3693.6,3693.5,10.69088228]
[1753451223818,0.002,3693.6,3693.5,5.49688228]
[1753451224020,0.002,3693.6,3693.5,10.13988228]
[1753451224351,0.002,3693.6,3693.5,0.8282]
[1753451224557,0.002,3693.6,3693.5,4.642]
[1753451225217,0.002,3693.6,3693.1,3.512128]
[1753451225430,0.1372,3693.6,3693.2,4.642]
[1753451226312,0.4563,3693.5,3693.2,4.642]
[1753451226541,0.1352,3693.4,3693.2,4.642]
[1753451226939,0.1352,3693.4,3693.0,2.70781432]
[1753451226940,3.29908081,3693.4,3693.0,4.641]
[1753451227217,0.1352,3693.4,3693.0,4.641]
[1753451227412,0.002,3693.6,3693.3,2.70760566]
[1753451227751,0.002,3693.6,3693.0,5.46987878]
[1753451227752,0.002,3693.6,3693.4,4.641]
[1753451227924,0.002,3693.6,3693.0,4.64]
[1753451228129,0.4583,3693.6,3693.0,4.64]
[1753451228332,0.002,3693.6,3693.2,2.70762362]
[1753451228630,0.002,3693.6,3693.1,2.70772845]
[1753451229354,0.002,3693.6,3693.2,2.7076531]
[1753451229651,0.002,3693.6,3693.2,2.70767698]
[1753451229829,0.002,3693.6,3693.0,4.64]
[1753451230254,0.002,3693.6,3693.3,2.70760546]
[1753451230460,0.002,3693.6,3693.5,2.70745904]
[1753451230753,0.002,3693.6,3693.5,3.50805904]
[1753451230962,0.002,3693.6,3693.5,4.42095904]
[1753451231846,1e-08,3693.6,3693.5,4.44803363]
[1753451232044,1e-08,3693.6,3693.5,4.99803363]
[1753451232252,1e-08,3693.6,3693.5,6.33733104]
[1753451232467,1e-08,3693.6,3693.5,9.31025645]
[1753451232636,1e-08,3693.9,3693.8,4.04073915]
[1753451232833,0.002,3694.4,3694.3,4.04037274]
[1753451233139,0.002,3694.7,3694.6,2.70665295]
[1753451233353,0.002,3695.1,3695.0,3.49815994]
[1753451233584,0.002,3695.1,3695.0,8.13415994]
[1753451233863,0.002,3695.1,3695.0,8.56275994]
[1753451234038,0.002,3695.1,3695.0,9.04705994]
[1753451234439,0.002,3695.1,3695.0,4.41105994]
[1753451234655,0.002,3695.1,3695.0,7.34235994]
[1753451234850,0.002,3695.1,3695.0,7.34135994]
[1753451235052,0.002,3695.1,3695.0,8.9456067]
[1753451236051,0.002,3695.1,3695.0,9.7144067]
[1753451237081,0.002,3695.4,3695.3,3.46204023]
[1753451237250,0.002,3695.4,3695.3,8.67210163]
[1753451237450,0.002,3695.4,3695.3,9.55794023]
[1753451237651,0.002,3695.4,3695.3,10.9886923]
[1753451237652,1e-08,3695.4,3695.3,10.9886923]
[1753451240183,0.002,3695.8,3695.7,4.04344733]
[1753451240184,1e-08,3695.8,3695.7,4.04344733]
[1753451240361,1e-08,3695.8,3695.7,8.7015058]
[1753451240563,1e-08,3695.8,3695.7,9.72254733]
[1753451240882,0.002,3696.6,3696.5,3.53106173]
[1753451241101,0.002,3696.6,3696.5,8.78470321]
[1753451241251,0.002,3696.6,3696.5,10.38280321]
[1753451241567,0.002,3696.6,3696.5,4.7642]
[1753451242083,0.4583,3696.6,3696.5,4.629]
[1753451242448,0.002,3696.6,3696.5,4.629]
[1753451242849,0.8734,3696.6,3696.0,0.1352]
[1753451243183,0.1372,3696.6,3696.1,2.70554103]
[1753451243770,2.84243839,3696.6,3696.0,4.628]
[1753451243971,2.70533589,3696.4,3696.0,4.628]
[1753451244281,0.1372,3696.6,3696.0,7.33359906]
[1753451244584,0.1372,3696.6,3696.2,2.70548038]
[1753451244787,0.002,3696.6,3696.3,4.628]
[1753451244947,0.002,3696.6,3696.5,2.84046173]
[1753451245150,0.002,3696.6,3696.5,8.01746173]
[1753451245352,0.002,3696.6,3696.5,10.4451079]
[1753451245653,0.002,3696.6,3696.5,9.8951079]
[1753451245851,0.002,3696.6,3696.5,3.5872079]
[1753451246075,0.002,3696.6,3696.5,7.46646173]
[1753451246382,0.002,3696.6,3696.5,0.1352]
[1753451246582,0.002,3696.6,3696.3,0.1352]
[1753451246795,0.1372,3696.6,3695.7,0.9129]
[1753451246950,0.4171,3696.6,3695.9,2.70570091]
[1753451247156,0.1372,3696.6,3695.9,0.1352]
[1753451247395,0.5935,3696.6,3695.9,0.1352]
[1753451247596,0.5935,3696.6,3696.0,2.70561673]
[1753451247793,0.5935,3696.6,3696.1,4.625]
[1753451248084,0.4563,3696.5,3696.1,4.625]
[1753451248914,0.4563,3696.5,3696.1,7.33052897]
[1753451249120,0.4563,3696.5,3696.1,4.625]
[1753451249581,0.4563,3696.5,3696.1,7.33054863]
[1753451249920,0.4563,3696.5,3696.0,2.70560465]
[1753451250215,0.4563,3696.5,3696.2,4.624]
[1753451250915,2.84065984,3696.3,3696.1,4.623]
[1753451251141,0.4563,3696.2,3696.1,4.622]
[1753451251281,0.8049,3696.1,3695.0,0.69134676]
[1753451251475,0.8049,3696.1,3695.3,4.622]
[1753451251476,0.1352,3695.8,3695.3,4.622]
[1753451251780,0.1352,3695.8,3694.7,0.8289]
[1753451251781,0.1352,3695.6,3695.2,4.622]
[1753451252009,0.1352,3695.6,3695.1,2.70627395]
[1753451252010,2.70612137,3695.4,3694.7,2.70653465]
[1753451252176,3.0,3696.0,3695.2,2.70621346]
[1753451252177,0.8969,3695.3,3695.2,2.70621346]
[1753451252377,0.7617,3695.8,3695.2,3.13476851]
[1753451252625,11.661,3696.5,3695.2,1.71553898]
[1753451252626,0.7617,3696.2,3695.2,1.71553898]
[1753451252806,0.1352,3696.0,3695.5,0.1352]
[1753451253010,0.1372,3696.6,3695.6,0.9129]
[1753451253209,0.1372,3696.6,3696.4,2.70528476]
[1753451253524,0.1372,3696.6,3696.1,0.1352]
[1753451253525,0.002,3696.6,3696.1,0.1352]
[1753451253720,0.002,3696.6,3696.5,2.70526173]
[1753451254012,0.002,3696.6,3696.5,2.84046173]
[1753451254939,0.002,3696.6,3696.3,4.62]
[1753451255138,0.5915,3696.5,3696.3,4.62]
[1753451255302,0.1352,3696.5,3696.0,7.32560561]
[1753451255503,0.1352,3696.5,3695.6,0.9129]
[1753451255504,0.8117,3696.3,3695.7,4.62]
[1753451255735,0.1352,3696.0,3695.7,4.62]
[1753451256232,0.1352,3696.0,3695.7,7.32584706]
[1753451256434,0.1352,3696.0,3695.7,4.62]
[1753451256729,2.70542274,3696.3,3695.9,0.1352]
[1753451257138,0.1352,3696.4,3695.9,0.1352]
[1753451257299,3.1352,3696.4,3696.0,4.619]
[1753451257497,0.6344,3696.4,3696.0,4.619]
[1753451257734,0.4992,3696.3,3696.0,4.619]
[1753451257907,0.7764,3696.0,3695.1,2.70621906]
[1753451258109,0.1352,3696.1,3695.4,0.1352]
[1753451258435,0.1352,3696.3,3695.8,0.1352]
[1753451258667,0.002,3696.6,3695.8,4.618]
[1753451258837,0.1352,3696.1,3695.8,4.618]
[1753451259137,0.1352,3696.1,3696.0,2.7056277]
[1753451259336,0.1352,3696.4,3696.0,2.7056277]
[1753451259635,0.1352,3696.4,3682.6,0.071]
[1753451259636,1.2669,3696.3,3694.4,0.4458]
[1753451259944,0.7677,3695.0,3694.3,0.1352]
[1753451260121,3.7677,3695.0,3694.3,0.1352]
[1753451260324,0.7677,3695.0,3694.4,0.02706799]
[1753451260658,3.0,3695.1,3694.6,0.1352]
[1753451260950,2.70641701,3695.0,3694.6,0.1352]
[1753451261115,2.70641701,3695.0,3694.3,0.9046]
[1753451261116,2.70657969,3694.7,3694.3,0.9046]
[1753451261460,0.1352,3695.2,3694.2,0.001]
[1753451261461,3.2055288,3695.1,3694.2,0.001]
[1753451261765,2.70687274,3694.3,3694.2,0.001]
[1753451262262,2.84207274,3694.3,3694.2,0.001]
[1753451262465,3.34127274,3694.3,3694.2,0.001]
[1753451262964,2.84207274,3694.3,3694.2,0.001]
[1753451263857,0.1352,3694.3,3694.2,0.001]
[1753451264070,5.4276,3694.6,3694.2,0.001]
[1753451264368,2.70687274,3694.3,3694.2,0.001]
[1753451264724,0.1352,3694.4,3694.2,0.001]
[1753451265362,6.46712006,3695.0,3694.2,0.001]
[1753451265561,3.7607,3695.0,3694.3,0.9046]
[1753451265720,11.654,3695.4,3694.4,1.07291]
[1753451265917,2.84156123,3695.0,3694.5,0.1352]
[1753451266193,3.4992,3695.3,3694.2,0.1362]
[1753451266363,0.1352,3694.8,3694.2,2.84313386]
[1753451266547,0.8304,3694.7,3694.2,0.001]
[1753451266751,5.70687274,3694.3,3694.2,0.001]
[1753451267063,6.67247274,3694.3,3694.2,0.001]
[1753451267274,8.5786,3694.3,3694.2,0.001]
[1753451267419,11.78467274,3694.3,3694.2,0.001]
[1753451267621,12.06457274,3694.3,3694.2,0.001]
[1753451268552,7.45157274,3694.3,3694.2,0.001]
[1753451268750,11.78467274,3694.3,3694.2,0.001]
[1753451269162,6.67247274,3694.3,3694.2,0.001]
[1753451269462,11.28547274,3694.3,3694.2,0.001]
[1753451269632,3.9656,3694.3,3694.2,0.001]
[1753451269821,3.0,3694.3,3694.2,0.9056]
[1753451270042,0.1352,3694.4,3694.2,0.9056]
[1753451270787,0.7814,3694.8,3694.2,0.9056]
[1753451270788,4.612,3694.7,3694.3,3.74665648]
[1753451270941,0.1352,3694.8,3694.4,0.9046]
[1753451271343,5.84176224,3694.8,3694.3,0.78066578]
[1753451271546,2.70679694,3694.5,3694.2,0.001]
[1753451271795,0.1352,3694.3,3694.2,0.001]
[1753451271988,4.611,3694.7,3694.2,0.001]
[1753451272199,4.7462,3694.7,3694.2,0.001]
[1753451272345,2.70676998,3694.5,3694.2,0.001]
[1753451272545,2.7067145,3694.6,3694.2,0.001]
[1753451272743,3.53877274,3694.3,3694.2,0.001]
[1753451272988,6.53877274,3694.3,3694.2,0.001]
[1753451273714,3.0,3694.3,3694.2,0.001]
[1753451274090,0.8044,3694.7,3694.2,2.70794602]
[1753451274287,3.0,3694.8,3694.2,0.7725]
[1753451274451,3.0,3694.8,3694.3,0.9046]
[1753451274647,2.70687274,3694.3,3694.2,0.001]
[1753451274848,5.70687274,3694.3,3694.2,0.001]
[1753451275182,6.48597274,3694.3,3694.2,0.001]
[1753451275568,7.29037274,3694.3,3694.2,0.001]
[1753451276285,2.70717824,3693.9,3692.7,0.001]
[1753451276487,0.55,3694.1,3692.7,0.001]
[1753451276488,5.70797227,3692.8,3692.7,0.001]
[1753451276854,3.0,3692.8,3692.7,0.001]
[1753451277171,5.70797227,3692.8,3692.7,0.001]
[1753451277681,6.20717227,3692.8,3692.7,0.001]